[Event "*** Titled Tuesday 3|2 Blitz"]
[Site "Chess.com"]
[Date "2016.09.06"]
[Round "4"]
[White "cassoulet"]
[Black "Generalas"]
[Result "1-0"]
[WhiteElo "2311"]
[BlackElo "2173"]
[TimeControl "180+2"]
[EndTime "11:47:49 PDT"]
[Termination "cassoulet won by resignation"]

1. e4 {[%clk 0:02:56.9]} 1... e5 {[%clk 0:03:00]} 2. Nf3 {[%clk 0:02:57.7]} 2...
Nc6 {[%clk 0:02:59.8]} 3. Bc4 {[%clk 0:02:59.1]} 3... Nf6 {[%clk 0:02:59.3]} 4.
d3 {[%clk 0:03:00.1]} 4... Be7 {[%clk 0:02:58.9]} 5. c3 {[%clk 0:03:01.5]} 5...
O-O {[%clk 0:02:59.2]} 6. O-O {[%clk 0:03:03.1]} 6... d5 {[%clk 0:02:56.2]} 7.
exd5 {[%clk 0:03:05]} 7... Nxd5 {[%clk 0:02:57.1]} 8. Re1 {[%clk 0:03:06.3]}
8... Bg4 {[%clk 0:02:53.1]} 9. h3 {[%clk 0:03:06.5]} 9... Bh5 {[%clk 0:02:52.4]}
10. Nbd2 {[%clk 0:03:05.2]} 10... f6 {[%clk 0:02:47.6]} 11. Qb3 {[%clk
0:03:00.6]} 11... Bf7 {[%clk 0:02:42.8]} 12. Qxb7 {[%clk 0:03:01.1]} 12... Na5
{[%clk 0:02:39.1]} 13. Qa6 {[%clk 0:03:01.1]} 13... Nxc4 {[%clk 0:02:36.4]} 14.
dxc4 {[%clk 0:03:01.9]} 14... Nf4 {[%clk 0:02:30.4]} 15. Ne4 {[%clk 0:02:56.5]}
15... Ne6 {[%clk 0:01:25.6]} 16. Be3 {[%clk 0:02:50.8]} 16... Qd3 {[%clk
0:01:13.8]} 17. Ng3 {[%clk 0:02:42.7]} 17... Rfe8 {[%clk 0:01:06.2]} 18. Rad1
{[%clk 0:02:42.4]} 18... Qc2 {[%clk 0:01:04.6]} 19. Rd2 {[%clk 0:02:43.5]} 19...
Qg6 {[%clk 0:01:05.1]} 20. Nh4 {[%clk 0:02:44]} 20... Nc5 {[%clk 0:00:42.3]} 21.
Bxc5 {[%clk 0:02:40.5]} 21... Qh6 {[%clk 0:00:39.4]} 22. Be3 {[%clk 0:02:20.7]}
22... Qxh4 {[%clk 0:00:39.3]} 23. Nf5 {[%clk 0:02:21]} 23... Qe4 {[%clk
0:00:36.2]} 24. Nxe7+ {[%clk 0:02:20.8]} 24... Rxe7 {[%clk 0:00:36.5]} 25. b3
{[%clk 0:02:15.3]} 25... f5 {[%clk 0:00:34.7]} 26. Red1 {[%clk 0:02:12]} 26...
f4 {[%clk 0:00:33.1]} 27. Bc5 {[%clk 0:02:11.8]} 27... Re6 {[%clk 0:00:32]} 28.
Rd8+ {[%clk 0:02:07.8]} 28... Rxd8 {[%clk 0:00:28.8]} 29. Rxd8+ {[%clk
0:02:09.7]} 29... Re8 {[%clk 0:00:29.5]} 30. Rxe8+ {[%clk 0:02:10]} 30... Bxe8
{[%clk 0:00:30]} 31. Qe6+ {[%clk 0:02:11.7]} 1-0

[Event "*** Titled Tuesday 3|2 Blitz"]
[Site "Chess.com"]
[Date "2016.09.06"]
[Round "4"]
[White "lionheart95"]
[Black "Boryboy"]
[Result "1-0"]
[WhiteElo "2463"]
[BlackElo "2409"]
[TimeControl "180+2"]
[EndTime "11:48:03 PDT"]
[Termination "lionheart95 won by resignation"]

1. e4 {[%clk 0:03:01.9]} 1... e6 {[%clk 0:03:00.3]} 2. d4 {[%clk 0:03:01.9]}
2... d5 {[%clk 0:03:00.6]} 3. Bd3 {[%clk 0:03:03.5]} 3... dxe4 {[%clk
0:02:55.1]} 4. Bxe4 {[%clk 0:03:05.4]} 4... Nf6 {[%clk 0:02:54.2]} 5. Bf3 {[%clk
0:03:05.6]} 5... Nc6 {[%clk 0:02:50]} 6. Ne2 {[%clk 0:03:05.2]} 6... e5 {[%clk
0:02:49.4]} 7. O-O {[%clk 0:03:06.3]} 7... exd4 {[%clk 0:02:48.8]} 8. Bxc6+
{[%clk 0:02:55.6]} 8... bxc6 {[%clk 0:02:49.5]} 9. Nxd4 {[%clk 0:02:54.8]} 9...
c5 {[%clk 0:02:39.9]} 10. Nb5 {[%clk 0:02:55.8]} 10... Bd6 {[%clk 0:02:34.1]}
11. Re1+ {[%clk 0:02:54.6]} 11... Be6 {[%clk 0:02:34.9]} 12. N1c3 {[%clk
0:02:52.3]} 12... O-O {[%clk 0:02:34.7]} 13. Nxd6 {[%clk 0:02:50.9]} 13... Qxd6
{[%clk 0:02:33.8]} 14. Bg5 {[%clk 0:02:48.9]} 14... Ng4 {[%clk 0:02:25.5]} 15.
Qxd6 {[%clk 0:02:48.6]} 15... cxd6 {[%clk 0:02:26.4]} 16. Be7 {[%clk 0:02:47.5]}
16... Rfb8 {[%clk 0:02:27.3]} 17. b3 {[%clk 0:02:44.1]} 17... Rb6 {[%clk
0:02:04.3]} 18. Rad1 {[%clk 0:02:43.5]} 18... c4 {[%clk 0:02:00]} 19. h3 {[%clk
0:02:32.3]} 19... Nf6 {[%clk 0:01:59.5]} 20. Bxd6 {[%clk 0:02:31.1]} 20... cxb3
{[%clk 0:02:00.4]} 21. cxb3 {[%clk 0:02:31.4]} 21... Rc8 {[%clk 0:02:01.2]} 22.
Be5 {[%clk 0:02:27.6]} 22... Rbc6 {[%clk 0:01:56.9]} 23. Bxf6 {[%clk 0:02:25.4]}
23... gxf6 {[%clk 0:01:58.8]} 24. Ne4 {[%clk 0:02:26.5]} 24... Kg7 {[%clk
0:02:00.2]} 25. Nd6 {[%clk 0:02:21.5]} 25... R8c7 {[%clk 0:01:57.1]} 26. Ne8+
{[%clk 0:02:22.3]} 26... Kf8 {[%clk 0:01:56.3]} 27. Nxc7 {[%clk 0:02:24.2]}
27... Rxc7 {[%clk 0:01:58.2]} 28. Rc1 {[%clk 0:02:24.3]} 28... Rb7 {[%clk
0:01:58.9]} 29. Red1 {[%clk 0:02:25]} 29... Kg7 {[%clk 0:02:00.6]} 30. Rd2
{[%clk 0:02:25.7]} 30... Rb5 {[%clk 0:02:01.1]} 31. f3 {[%clk 0:02:27.2]} 31...
a5 {[%clk 0:02:02.3]} 32. Kf2 {[%clk 0:02:28.8]} 32... a4 {[%clk 0:02:01.3]} 33.
bxa4 {[%clk 0:02:28.6]} 33... Rb4 {[%clk 0:02:03]} 34. Rc3 {[%clk 0:02:19.8]}
34... Rxa4 {[%clk 0:02:02.9]} 35. a3 {[%clk 0:02:21.4]} 35... f5 {[%clk
0:02:03.1]} 36. Rb2 {[%clk 0:02:22.6]} 36... Kf6 {[%clk 0:02:04.5]} 37. Rb4
{[%clk 0:02:23.4]} 37... Ra7 {[%clk 0:02:05.2]} 38. a4 {[%clk 0:02:24.6]} 38...
Ke5 {[%clk 0:02:06]} 39. Ra3 {[%clk 0:02:22]} 39... Kd6 {[%clk 0:02:06.4]} 40.
a5 {[%clk 0:02:22.7]} 40... Kc5 {[%clk 0:02:07.8]} 41. Rb2 {[%clk 0:02:23.6]}
41... f4 {[%clk 0:02:07.9]} 42. a6 {[%clk 0:02:21]} 42... Bd5 {[%clk 0:02:09.3]}
43. Ra5+ {[%clk 0:02:21.6]} 43... Kc4 {[%clk 0:02:10.4]} 44. Rc2+ {[%clk
0:02:17.8]} 44... Kd3 {[%clk 0:02:11.3]} 45. Rc8 {[%clk 0:02:10.1]} 45... Be6
{[%clk 0:02:02.9]} 46. Rb8 {[%clk 0:02:07.3]} 46... Bc4 {[%clk 0:01:50.3]} 47.
Rb7 {[%clk 0:02:06.8]} 47... Ra8 {[%clk 0:01:35.8]} 48. a7 {[%clk 0:02:07.5]}
48... Re8 {[%clk 0:01:37.5]} 49. a8=Q {[%clk 0:02:03.1]} 1-0

[Event "*** Titled Tuesday 3|2 Blitz"]
[Site "Chess.com"]
[Date "2016.09.06"]
[Round "4"]
[White "Mischuk_D"]
[Black "putinwarrior"]
[Result "0-1"]
[WhiteElo "2476"]
[BlackElo "2368"]
[TimeControl "180+2"]
[EndTime "11:48:26 PDT"]
[Termination "putinwarrior won by resignation"]

1. e4 {[%clk 0:03:02]} 1... Nf6 {[%clk 0:03:00.2]} 2. e5 {[%clk 0:03:02.6]} 2...
Nd5 {[%clk 0:02:59.3]} 3. d4 {[%clk 0:03:03.6]} 3... d6 {[%clk 0:02:59.4]} 4.
Nf3 {[%clk 0:03:04.6]} 4... dxe5 {[%clk 0:02:56.2]} 5. Nxe5 {[%clk 0:03:03.8]}
5... c6 {[%clk 0:02:57.6]} 6. Be2 {[%clk 0:03:03.3]} 6... Bf5 {[%clk 0:02:57.6]}
7. O-O {[%clk 0:03:03.2]} 7... Nd7 {[%clk 0:02:57.7]} 8. Nc4 {[%clk 0:02:55.7]}
8... e6 {[%clk 0:02:57.5]} 9. Ne3 {[%clk 0:02:50.8]} 9... Nxe3 {[%clk
0:02:52.1]} 10. Bxe3 {[%clk 0:02:51.7]} 10... Bd6 {[%clk 0:02:53.6]} 11. Nd2
{[%clk 0:02:50]} 11... O-O {[%clk 0:02:48.4]} 12. Nc4 {[%clk 0:02:48.1]} 12...
Bc7 {[%clk 0:02:46.1]} 13. c3 {[%clk 0:02:48.5]} 13... Qh4 {[%clk 0:02:31.6]}
14. g3 {[%clk 0:02:49.1]} 14... Qe7 {[%clk 0:02:29.4]} 15. Bf3 {[%clk 0:02:49]}
15... Nb6 {[%clk 0:02:28.3]} 16. Ne5 {[%clk 0:02:48.5]} 16... Bxe5 {[%clk
0:02:10.8]} 17. dxe5 {[%clk 0:02:49]} 17... Nc4 {[%clk 0:02:11.5]} 18. Qd4
{[%clk 0:02:32.1]} 18... Nxb2 {[%clk 0:01:48.8]} 19. a4 {[%clk 0:02:22.3]} 19...
Rfd8 {[%clk 0:01:46.9]} 20. Qb4 {[%clk 0:02:17]} 20... Qxb4 {[%clk 0:01:41.7]}
21. cxb4 {[%clk 0:02:18.9]} 21... Nd3 {[%clk 0:01:43.3]} 22. b5 {[%clk
0:02:17.1]} 22... Nxe5 {[%clk 0:01:39.1]} 23. Bg2 {[%clk 0:02:18.3]} 23... cxb5
{[%clk 0:00:47.8]} 24. axb5 {[%clk 0:02:18]} 24... Bd3 {[%clk 0:00:47.7]} 25.
Rfe1 {[%clk 0:02:04.8]} 25... Bxb5 {[%clk 0:00:38.8]} 26. Bxb7 {[%clk
0:02:05.7]} 26... Rab8 {[%clk 0:00:27.5]} 27. Bxa7 {[%clk 0:02:04]} 27... Rxb7
{[%clk 0:00:27.6]} 28. Rxe5 {[%clk 0:02:05]} 28... Ra8 {[%clk 0:00:28.4]} 29.
Ree1 {[%clk 0:02:06]} 29... Rbxa7 {[%clk 0:00:28.4]} 30. Rab1 {[%clk 0:02:05.4]}
30... Be8 {[%clk 0:00:29.5]} 31. h4 {[%clk 0:02:05.8]} 31... h5 {[%clk
0:00:30.9]} 32. Rbc1 {[%clk 0:02:06]} 32... g6 {[%clk 0:00:31.9]} 33. Rb1 {[%clk
0:02:05.6]} 33... Bc6 {[%clk 0:00:32.4]} 34. Rbc1 {[%clk 0:02:05.7]} 34... Bd5
{[%clk 0:00:34]} 35. Rb1 {[%clk 0:02:07]} 35... Ra2 {[%clk 0:00:35.6]} 36. Rbc1
{[%clk 0:02:07.6]} 36... Rd2 {[%clk 0:00:36.9]} 37. Ra1 {[%clk 0:02:07.8]} 37...
Rxa1 {[%clk 0:00:37.5]} 38. Rxa1 {[%clk 0:02:08.9]} 38... Ra2 {[%clk 0:00:38.3]}
39. Rb1 {[%clk 0:02:10]} 39... Kg7 {[%clk 0:00:39.4]} 40. Rc1 {[%clk 0:02:11]}
40... Kf6 {[%clk 0:00:40.8]} 41. Rb1 {[%clk 0:02:12.2]} 41... Kf5 {[%clk
0:00:41.9]} 42. Rb2 {[%clk 0:02:12.7]} 42... Rxb2 {[%clk 0:00:41.3]} 0-1

[Event "*** Titled Tuesday 3|2 Blitz"]
[Site "Chess.com"]
[Date "2016.09.06"]
[Round "4"]
[White "Lali-Rustavi"]
[Black "AnastasiaProtopopova"]
[Result "0-1"]
[WhiteElo "1827"]
[BlackElo "2086"]
[TimeControl "180+2"]
[EndTime "11:48:37 PDT"]
[Termination "AnastasiaProtopopova won by resignation"]

1. e4 {[%clk 0:03:01.9]} 1... e5 {[%clk 0:03:00]} 2. Nf3 {[%clk 0:03:02.7]} 2...
Nc6 {[%clk 0:03:01.5]} 3. Bc4 {[%clk 0:03:03.9]} 3... Nf6 {[%clk 0:02:59.7]} 4.
d3 {[%clk 0:03:03.5]} 4... Bc5 {[%clk 0:02:58.3]} 5. c3 {[%clk 0:03:03.9]} 5...
O-O {[%clk 0:02:55.8]} 6. O-O {[%clk 0:03:03.9]} 6... d5 {[%clk 0:02:56]} 7.
exd5 {[%clk 0:02:51.5]} 7... Nxd5 {[%clk 0:02:55.8]} 8. Re1 {[%clk 0:02:24.9]}
8... Bg4 {[%clk 0:02:47.3]} 9. a4 {[%clk 0:01:55.5]} 9... a5 {[%clk 0:02:29.3]}
10. h3 {[%clk 0:01:44.4]} 10... Bh5 {[%clk 0:02:28.1]} 11. Nbd2 {[%clk
0:01:35.7]} 11... Nb6 {[%clk 0:02:25.9]} 12. Ne4 {[%clk 0:01:30.7]} 12... Nxc4
{[%clk 0:02:25.2]} 13. Nxc5 {[%clk 0:01:19.9]} 13... Nd6 {[%clk 0:02:25.7]} 14.
Ne4 {[%clk 0:01:17]} 14... Nxe4 {[%clk 0:02:23.8]} 15. dxe4 {[%clk 0:01:11.4]}
15... Bg6 {[%clk 0:02:12.4]} 16. Bg5 {[%clk 0:01:06.9]} 16... f6 {[%clk
0:02:09.6]} 17. Bh4 {[%clk 0:01:05]} 17... Qxd1 {[%clk 0:02:03.4]} 18. Raxd1
{[%clk 0:01:04.6]} 18... Rad8 {[%clk 0:02:03.1]} 19. Rd5 {[%clk 0:01:00.1]}
19... b6 {[%clk 0:01:56.9]} 20. Nh2 {[%clk 0:00:40.4]} 20... Ne7 {[%clk
0:01:53.8]} 21. Rxe5 {[%clk 0:00:32.2]} 21... fxe5 {[%clk 0:01:43.8]} 22. Bxe7
{[%clk 0:00:33.2]} 22... Rd2 {[%clk 0:01:41.7]} 23. Bxf8 {[%clk 0:00:33.9]}
23... Kxf8 {[%clk 0:01:42.7]} 24. Ng4 {[%clk 0:00:34.4]} 24... Rxb2 {[%clk
0:01:36.7]} 25. Nxe5 {[%clk 0:00:35.4]} 25... Be8 {[%clk 0:01:36.9]} 26. Rd1
{[%clk 0:00:30.9]} 26... Bxa4 {[%clk 0:01:32.8]} 27. f4 {[%clk 0:00:30.1]} 27...
Bxd1 {[%clk 0:01:29.5]} 0-1

[Event "*** Titled Tuesday 3|2 Blitz"]
[Site "Chess.com"]
[Date "2016.09.06"]
[Round "4"]
[White "ftorodent"]
[Black "DeviatkinAndrey"]
[Result "0-1"]
[WhiteElo "2472"]
[BlackElo "2607"]
[TimeControl "180+2"]
[EndTime "11:48:57 PDT"]
[Termination "DeviatkinAndrey won by resignation"]

1. d4 {[%clk 0:03:01.9]} 1... d5 {[%clk 0:02:48.1]} 2. Bf4 {[%clk 0:03:01.4]}
2... Nf6 {[%clk 0:02:45.7]} 3. e3 {[%clk 0:03:01.8]} 3... c5 {[%clk 0:02:41.9]}
4. c3 {[%clk 0:03:03]} 4... e6 {[%clk 0:02:38.6]} 5. Nd2 {[%clk 0:03:01.6]} 5...
Bd6 {[%clk 0:02:38.4]} 6. Bxd6 {[%clk 0:03:02.5]} 6... Qxd6 {[%clk 0:02:39.1]}
7. f4 {[%clk 0:03:04.2]} 7... O-O {[%clk 0:02:29.7]} 8. Bd3 {[%clk 0:03:04.2]}
8... b6 {[%clk 0:02:30.9]} 9. Qe2 {[%clk 0:03:03.5]} 9... a5 {[%clk 0:02:32.2]}
10. Ngf3 {[%clk 0:03:00.4]} 10... Ba6 {[%clk 0:02:32.9]} 11. Bxa6 {[%clk
0:02:59.5]} 11... Nxa6 {[%clk 0:02:33.6]} 12. Ne5 {[%clk 0:03:01]} 12... b5
{[%clk 0:02:29.1]} 13. O-O {[%clk 0:02:52]} 13... Rab8 {[%clk 0:02:25.1]} 14. f5
{[%clk 0:02:49.8]} 14... b4 {[%clk 0:02:17.3]} 15. fxe6 {[%clk 0:01:51.2]} 15...
fxe6 {[%clk 0:02:10.3]} 16. c4 {[%clk 0:01:35.4]} 16... Nc7 {[%clk 0:01:59.3]}
17. Rad1 {[%clk 0:01:31.8]} 17... cxd4 {[%clk 0:01:59.7]} 18. exd4 {[%clk
0:01:32.7]} 18... dxc4 {[%clk 0:01:58.5]} 19. Ndxc4 {[%clk 0:01:33.8]} 19... Qd5
{[%clk 0:01:56.2]} 20. Qf3 {[%clk 0:01:21.7]} 20... Qxf3 {[%clk 0:01:56]} 21.
Rxf3 {[%clk 0:01:22.7]} 21... Nfd5 {[%clk 0:01:37.4]} 22. Rxf8+ {[%clk 0:01:15]}
22... Rxf8 {[%clk 0:01:37.4]} 23. Nxa5 {[%clk 0:01:14.9]} 23... Ne3 {[%clk
0:01:31.4]} 24. Rc1 {[%clk 0:01:15]} 24... Ncd5 {[%clk 0:01:26.3]} 25. Nac4
{[%clk 0:01:07.7]} 25... Nf4 {[%clk 0:01:22.2]} 26. Re1 {[%clk 0:00:52.9]} 26...
Nexg2 {[%clk 0:01:20.4]} 27. Re4 {[%clk 0:00:51.4]} 27... g5 {[%clk 0:01:19.1]}
28. Ne3 {[%clk 0:00:40.5]} 28... Nh4 {[%clk 0:01:14.2]} 29. h3 {[%clk
0:00:19.3]} 29... Ne2+ {[%clk 0:01:10.8]} 30. Kh2 {[%clk 0:00:19.7]} 30... Rf2+
{[%clk 0:01:11.9]} 31. Kh1 {[%clk 0:00:20.8]} 31... Ng3+ {[%clk 0:01:11.3]} 0-1

[Event "*** Titled Tuesday 3|2 Blitz"]
[Site "Chess.com"]
[Date "2016.09.06"]
[Round "4"]
[White "Saitama_Hero"]
[Black "Baggio95"]
[Result "0-1"]
[WhiteElo "2260"]
[BlackElo "2347"]
[TimeControl "180+2"]
[EndTime "11:49:18 PDT"]
[Termination "Baggio95 won by checkmate"]

1. d4 {[%clk 0:03:01.9]} 1... Nf6 {[%clk 0:02:56.4]} 2. Nf3 {[%clk 0:03:02.4]}
2... g6 {[%clk 0:02:53.8]} 3. Bg5 {[%clk 0:03:03.7]} 3... Bg7 {[%clk 0:02:53.6]}
4. Nbd2 {[%clk 0:03:04.9]} 4... d5 {[%clk 0:02:53.9]} 5. Bxf6 {[%clk 0:03:03.9]}
5... Bxf6 {[%clk 0:02:51]} 6. e4 {[%clk 0:03:05.3]} 6... dxe4 {[%clk 0:02:50.5]}
7. Nxe4 {[%clk 0:03:07.2]} 7... Bg7 {[%clk 0:02:51]} 8. Bc4 {[%clk 0:03:08.7]}
8... O-O {[%clk 0:02:50.6]} 9. c3 {[%clk 0:03:10.2]} 9... Nd7 {[%clk 0:02:46.4]}
10. h4 {[%clk 0:03:10.4]} 10... Nf6 {[%clk 0:02:33.1]} 11. Neg5 {[%clk
0:01:50.9]} 11... h6 {[%clk 0:02:16.3]} 12. h5 {[%clk 0:01:36.9]} 12... hxg5
{[%clk 0:01:43.4]} 13. hxg6 {[%clk 0:01:37]} 13... e6 {[%clk 0:01:37.4]} 14.
gxf7+ {[%clk 0:01:26]} 14... Rxf7 {[%clk 0:01:35.8]} 15. Nxg5 {[%clk 0:01:27.6]}
15... Re7 {[%clk 0:01:25.5]} 16. Qd3 {[%clk 0:01:22.7]} 16... b5 {[%clk
0:01:18.1]} 17. Bb3 {[%clk 0:01:19.5]} 17... c5 {[%clk 0:01:14]} 18. Bc2 {[%clk
0:01:09.8]} 18... c4 {[%clk 0:01:00.7]} 19. Qh3 {[%clk 0:01:07.1]} 19... e5
{[%clk 0:00:56.4]} 20. Bh7+ {[%clk 0:01:04.5]} 20... Kf8 {[%clk 0:00:56.7]} 21.
Bf5 {[%clk 0:00:55.1]} 21... exd4+ {[%clk 0:00:50.6]} 22. Kf1 {[%clk 0:00:54.8]}
22... Bxf5 {[%clk 0:00:45.7]} 23. Qxf5 {[%clk 0:00:56.7]} 23... Kg8 {[%clk
0:00:45.2]} 24. Re1 {[%clk 0:00:26.2]} 24... Rxe1+ {[%clk 0:00:44]} 25. Kxe1
{[%clk 0:00:28.1]} 25... Qd5 {[%clk 0:00:41.3]} 26. Qg6 {[%clk 0:00:26.8]} 26...
Re8+ {[%clk 0:00:38]} 27. Kf1 {[%clk 0:00:28.3]} 27... dxc3 {[%clk 0:00:36.5]}
28. Nh7 {[%clk 0:00:20.5]} 28... Qd1# {[%clk 0:00:35.2]} 0-1

[Event "*** Titled Tuesday 3|2 Blitz"]
[Site "Chess.com"]
[Date "2016.09.06"]
[Round "4"]
[White "SCIM"]
[Black "AlexanderL"]
[Result "0-1"]
[WhiteElo "2254"]
[BlackElo "2518"]
[TimeControl "180+2"]
[EndTime "11:49:38 PDT"]
[Termination "AlexanderL won by resignation"]

1. d4 {[%clk 0:02:57.6]} 1... Nf6 {[%clk 0:02:59.9]} 2. c4 {[%clk 0:02:58.4]}
2... e6 {[%clk 0:03:00.8]} 3. g3 {[%clk 0:02:58.4]} 3... d5 {[%clk 0:02:56.7]}
4. Nf3 {[%clk 0:02:58.8]} 4... Bb4+ {[%clk 0:02:56.9]} 5. Bd2 {[%clk 0:02:59.1]}
5... Bd6 {[%clk 0:02:57.7]} 6. Bg2 {[%clk 0:02:57.9]} 6... O-O {[%clk
0:02:58.5]} 7. O-O {[%clk 0:02:58.5]} 7... c6 {[%clk 0:02:59.6]} 8. Nc3 {[%clk
0:02:55]} 8... dxc4 {[%clk 0:03:00.5]} 9. e4 {[%clk 0:02:53.9]} 9... Be7 {[%clk
0:02:59.8]} 10. a4 {[%clk 0:02:49.2]} 10... b6 {[%clk 0:02:49.5]} 11. Qe2 {[%clk
0:02:39.8]} 11... Ba6 {[%clk 0:02:50.2]} 12. Rad1 {[%clk 0:02:28.6]} 12... Qc8
{[%clk 0:02:49.7]} 13. h4 {[%clk 0:02:22.3]} 13... Rd8 {[%clk 0:02:49.2]} 14.
Rfe1 {[%clk 0:02:22.9]} 14... Nbd7 {[%clk 0:02:44.5]} 15. Bg5 {[%clk 0:02:17.7]}
15... h6 {[%clk 0:02:42.6]} 16. Bf4 {[%clk 0:02:14.5]} 16... Nf8 {[%clk
0:02:36.4]} 17. Ne5 {[%clk 0:02:11.6]} 17... b5 {[%clk 0:02:32.6]} 18. axb5
{[%clk 0:01:48.4]} 18... cxb5 {[%clk 0:02:32.4]} 19. d5 {[%clk 0:01:46.7]} 19...
b4 {[%clk 0:02:32.7]} 20. Na4 {[%clk 0:01:31.4]} 20... Bb5 {[%clk 0:02:31.3]}
21. b3 {[%clk 0:01:26.8]} 21... Qa6 {[%clk 0:02:16.9]} 22. Nxc4 {[%clk
0:01:20.9]} 22... Ng6 {[%clk 0:02:17.6]} 23. Bc7 {[%clk 0:01:16.6]} 23... Rd7
{[%clk 0:02:00.9]} 24. d6 {[%clk 0:01:15.9]} 24... Rxc7 {[%clk 0:02:02.2]} 25.
dxc7 {[%clk 0:01:11.9]} 25... Rc8 {[%clk 0:02:04.1]} 26. e5 {[%clk 0:01:04.2]}
26... Nd7 {[%clk 0:02:04.3]} 27. Ra1 {[%clk 0:00:55.4]} 27... Bxc4 {[%clk
0:01:55.5]} 28. bxc4 {[%clk 0:00:52.4]} 28... Rxc7 {[%clk 0:01:56.5]} 29. Nc5
{[%clk 0:00:48.3]} 29... Qc8 {[%clk 0:01:55.1]} 30. Nxd7 {[%clk 0:00:45.5]}
30... Rxd7 {[%clk 0:01:53.1]} 31. h5 {[%clk 0:00:46.3]} 31... Nf8 {[%clk
0:01:52.4]} 32. Red1 {[%clk 0:00:42.1]} 32... Bc5 {[%clk 0:01:53.2]} 33. Rxd7
{[%clk 0:00:40.6]} 33... Qxd7 {[%clk 0:01:54.4]} 34. Rd1 {[%clk 0:00:38.8]}
34... Qc7 {[%clk 0:01:55.2]} 35. Qe4 {[%clk 0:00:34.7]} 35... a5 {[%clk
0:01:45.6]} 36. Ra1 {[%clk 0:00:22]} 36... b3 {[%clk 0:01:31.6]} 37. Kf1 {[%clk
0:00:12.7]} 37... Qb6 {[%clk 0:01:26.1]} 38. Qc6 {[%clk 0:00:11.3]} 38... Qb4
{[%clk 0:01:21.7]} 39. Qa4 {[%clk 0:00:09.4]} 39... b2 {[%clk 0:01:21.9]} 0-1

[Event "*** Titled Tuesday 3|2 Blitz"]
[Site "Chess.com"]
[Date "2016.09.06"]
[Round "4"]
[White "Misha_Bilous"]
[Black "wonderfultime"]
[Result "0-1"]
[WhiteElo "2366"]
[BlackElo "2659"]
[TimeControl "180+2"]
[EndTime "11:49:51 PDT"]
[Termination "wonderfultime won on time"]

1. d4 {[%clk 0:03:01.9]} 1... d5 {[%clk 0:03:01]} 2. c4 {[%clk 0:03:03.2]} 2...
c6 {[%clk 0:03:02.5]} 3. Nf3 {[%clk 0:03:02.3]} 3... Nf6 {[%clk 0:03:03.6]} 4.
e3 {[%clk 0:03:03.6]} 4... Bf5 {[%clk 0:03:04.8]} 5. Bd3 {[%clk 0:03:04]} 5...
Bg6 {[%clk 0:03:04.9]} 6. O-O {[%clk 0:02:56.3]} 6... e6 {[%clk 0:03:05.4]} 7.
Bxg6 {[%clk 0:02:46.6]} 7... hxg6 {[%clk 0:03:06.4]} 8. b3 {[%clk 0:02:48.1]}
8... Nbd7 {[%clk 0:03:07.1]} 9. Nbd2 {[%clk 0:02:45.4]} 9... Bd6 {[%clk
0:03:08.2]} 10. h3 {[%clk 0:02:45.1]} 10... Qe7 {[%clk 0:02:13.5]} 11. Bb2
{[%clk 0:02:44.4]} 11... Ne4 {[%clk 0:02:13.5]} 12. Nxe4 {[%clk 0:01:58.6]}
12... dxe4 {[%clk 0:02:15.4]} 13. Ne5 {[%clk 0:01:59.8]} 13... Bxe5 {[%clk
0:01:28.9]} 14. dxe5 {[%clk 0:01:59.3]} 14... Qg5 {[%clk 0:01:30.5]} 15. Qd4
{[%clk 0:01:49.3]} 15... Rxh3 {[%clk 0:01:06.4]} 16. Qxe4 {[%clk 0:01:09.2]}
16... O-O-O {[%clk 0:00:48.2]} 17. f4 {[%clk 0:00:44.4]} 17... Qg4 {[%clk
0:00:45.4]} 18. Rf3 {[%clk 0:00:26.3]} 18... Nc5 {[%clk 0:00:43.9]} 19. Qc2
{[%clk 0:00:11.9]} 19... Rxf3 {[%clk 0:00:44.5]} 20. Bd4 {[%clk 0:00:10.7]}
20... Nd7 {[%clk 0:00:13.3]} 21. Bxa7 {[%clk 0:00:08.5]} 21... Rh8 {[%clk
0:00:14.4]} 22. Qe2 {[%clk 0:00:07.8]} 22... Rg3 {[%clk 0:00:15.2]} 23. Qxg4
{[%clk 0:00:05.3]} 23... Rxg4 {[%clk 0:00:17.1]} 24. Rd1 {[%clk 0:00:06.9]}
24... g5 {[%clk 0:00:16.6]} 25. Rd4 {[%clk 0:00:05]} 25... gxf4 {[%clk
0:00:16.5]} 26. exf4 {[%clk 0:00:06.9]} 26... g5 {[%clk 0:00:18]} 0-1

[Event "*** Titled Tuesday 3|2 Blitz"]
[Site "Chess.com"]
[Date "2016.09.06"]
[Round "4"]
[White "talaicito"]
[Black "usbista"]
[Result "1-0"]
[WhiteElo "1984"]
[BlackElo "2076"]
[TimeControl "180+2"]
[EndTime "11:49:53 PDT"]
[Termination "talaicito won on time"]

1. e4 {[%clk 0:03:02]} 1... c5 {[%clk 0:02:56.7]} 2. Nf3 {[%clk 0:03:02.5]} 2...
e6 {[%clk 0:02:55]} 3. d4 {[%clk 0:03:03.9]} 3... cxd4 {[%clk 0:02:56.9]} 4.
Nxd4 {[%clk 0:03:05.4]} 4... Nc6 {[%clk 0:02:58.8]} 5. g3 {[%clk 0:03:01.1]}
5... Qc7 {[%clk 0:02:52.4]} 6. Nb3 {[%clk 0:02:54.2]} 6... a6 {[%clk 0:02:51.1]}
7. Bg2 {[%clk 0:02:54.5]} 7... Nge7 {[%clk 0:02:40.2]} 8. Bf4 {[%clk 0:02:38]}
8... e5 {[%clk 0:02:38.8]} 9. Be3 {[%clk 0:02:33.8]} 9... h5 {[%clk 0:02:27.7]}
10. h4 {[%clk 0:02:27.8]} 10... d6 {[%clk 0:02:26.9]} 11. O-O {[%clk 0:02:24.4]}
11... Bg4 {[%clk 0:02:27.2]} 12. Qd2 {[%clk 0:02:18.3]} 12... Be6 {[%clk
0:02:15]} 13. Nc3 {[%clk 0:02:15.2]} 13... f5 {[%clk 0:02:10.4]} 14. Rad1 {[%clk
0:02:00.1]} 14... Rd8 {[%clk 0:02:05.2]} 15. Rfe1 {[%clk 0:01:31.3]} 15... fxe4
{[%clk 0:01:48.7]} 16. Nxe4 {[%clk 0:01:20.8]} 16... Nf5 {[%clk 0:01:46.2]} 17.
Ng5 {[%clk 0:01:01.3]} 17... Bxb3 {[%clk 0:01:28.7]} 18. axb3 {[%clk 0:00:57.7]}
18... Nxe3 {[%clk 0:01:25.4]} 19. Qxe3 {[%clk 0:00:55.7]} 19... Qe7 {[%clk
0:00:51.7]} 20. Bd5 {[%clk 0:00:30]} 20... Qf6 {[%clk 0:00:45.6]} 21. Nf7 {[%clk
0:00:26.1]} 21... Rh6 {[%clk 0:00:30.5]} 22. Nxd8 {[%clk 0:00:19]} 22... Qxd8
{[%clk 0:00:30.7]} 23. Bxc6+ {[%clk 0:00:19.2]} 23... bxc6 {[%clk 0:00:30.4]}
24. f4 {[%clk 0:00:19.5]} 1-0